Workbook

Sheet ReadMe
B4: Reading this document will help you navigate the dashboard

Sheet Dashboard
B1: Region: | C1: Alabama
B3: Overall Statistics | F3: Team Wise Analysis
F4: Team A | H4: Team B | J4: Team C | L4: Team D | N4: Team E | P4: Team F | R4: Team G | T4: Team H | V4: Team I | X4: Team J
B5: =INDEX(Products,MATCH($C$1,Regions,0)) -> Product 1
Z6: =IF(IFERROR(MAX((J7:U7=G7)*(J8:U8)),0)> IFERROR(MAX((J7:U7=G7)*(J9:U9)),0),I8,I9) -> Flavia
B7: Calls | C7: =SUMIF('Team Performance'!$E$2:$E$103,Dashboard!$C$1,'Team Performance'!$M$2:$M$103) -> 5921 | F7: Top Rep By | G7: Login Hrs | H7: ="->" -> -> | I7: Name | J7: Login Hrs | K7: Talk Time | L7: Calls | M7: Sales/Hr | N7: Total Sales | O7: Rev/Hr | P7: Total Rev | Q7: Excellent | R7: Good | S7: Fair | T7: Poor | U7: CSAT
B8: Sales | C8: =SUMIF('Team Performance'!$E$2:$E$103,Dashboard!$C$1,'Team Performance'!$I$2:$I$103) -> 351 | I8: =IF(INDEX(INDIRECT("'Team Performance'!A"& Calculation_Sheet!$K$25 &":"&"A"& Calculation_Sheet!$L$25), Calculation_Sheet!$K$26+ ROW($Y11)-ROW($Y$11)) = Calculation_Sheet!$J$26,INDEX(INDIRECT("'Team Performance'!B"& Calculation_Sheet!$K$25 &":"&"B"& Calculation_Sheet!$L$25), Calculation_Sheet!$K$26+ ROW($Y11)-ROW($Y$11)),"") -> Sydnee | J8: =IF(INDEX(INDIRECT("'Team Performance'!A"& Calculation_Sheet!$K$25 &":"&"A"& Calculation_Sheet!$L$25), Calculation_Sheet!$K$26+ ROW($Y11)-ROW($Y$11)) = Calculation_Sheet!$J$26,INDEX(INDIRECT("'Team Performance'!F"& Calculation_Sheet!$K$25 &":"&"F"& Calculation_Sheet!$L$25), Calculation_Sheet!$K$26+ ROW($Y11)-ROW($Y$11)),"") -> 7 | K8: =IF(INDEX(INDIRECT("'Team Performance'!A"& Calculation_Sheet!$K$25 &":"&"A"& Calculation_Sheet!$L$25), Calculation_Sheet!$K$26+ ROW($Y11)-ROW($Y$11)) = Calculation_Sheet!$J$26,INDEX(INDIRECT("'Team Performance'!G"& Calculation_Sheet!$K$25 &":"&"G"& Calculation_Sheet!$L$25), Calculation_Sheet!$K$26+ ROW($Y11)-ROW($Y$11)),"") -> 6 | L8: =IF(INDEX(INDIRECT("'Team Performance'!A"& Calculation_Sheet!$K$25 &":"&"A"& Calculation_Sheet!$L$25), Calculation_Sheet!$K$26+ ROW($Y11)-ROW($Y$11)) = Calculation_Sheet!$J$26,INDEX(INDIRECT("'Team Performance'!M"& Calculation_Sheet!$K$25 &":"&"M"& Calculation_Sheet!$L$25), Calculation_Sheet!$K$26+ ROW($Y11)-ROW($Y$11)),"") -> 358 | M8: =IF(INDEX(INDIRECT("'Team Performance'!A"& Calculation_Sheet!$K$25 &":"&"A"& Calculation_Sheet!$L$25), Calculation_Sheet!$K$26+ ROW($Y11)-ROW($Y$11)) = Calculation_Sheet!$J$26,INDEX(INDIRECT("'Team Performance'!J"& Calculation_Sheet!$K$25 &":"&"J"& Calculation_Sheet!$L$25), Calculation_Sheet!$K$26+ ROW($Y11)-ROW($Y$11)),"") -> 3.142857143 | N8: =IF(INDEX(INDIRECT("'Team Performance'!A"& Calculation_Sheet!$K$25 &":"&"A"& Calculation_Sheet!$L$25), Calculation_Sheet!$K$26+ ROW($Y11)-ROW($Y$11)) = Calculation_Sheet!$J$26,INDEX(INDIRECT("'Team Performance'!I"& Calculation_Sheet!$K$25 &":"&"I"& Calculation_Sheet!$L$25), Calculation_Sheet!$K$26+ ROW($Y11)-ROW($Y$11)),"") -> 22 | O8: =IF(INDEX(INDIRECT("'Team Performance'!A"& Calculation_Sheet!$K$25 &":"&"A"& Calculation_Sheet!$L$25), Calculation_Sheet!$K$26+ ROW($Y11)-ROW($Y$11)) = Calculation_Sheet!$J$26,INDEX(INDIRECT("'Team Performance'!L"& Calculation_Sheet!$K$25 &":"&"L"& Calculation_Sheet!$L$25), Calculation_Sheet!$K$26+ ROW($Y11)-ROW($Y$11)),"") -> 106.8571429 | P8: =IF(INDEX(INDIRECT("'Team Performance'!A"& Calculation_Sheet!$K$25 &":"&"A"& Calculation_Sheet!$L$25), Calculation_Sheet!$K$26+ ROW($Y11)-ROW($Y$11)) = Calculation_Sheet!$J$26,INDEX(INDIRECT("'Team Performance'!K"& Calculation_Sheet!$K$25 &":"&"K"& Calculation_Sheet!$L$25), Calculation_Sheet!$K$26+ ROW($Y11)-ROW($Y$11)),"") -> 748 | Q8: =IF(INDEX(INDIRECT("'Team Performance'!A"& Calculation_Sheet!$K$25 &":"&"A"& Calculation_Sheet!$L$25), Calculation_Sheet!$K$26+ ROW($Y11)-ROW($Y$11)) = Calculation_Sheet!$J$26,INDEX(INDIRECT("'Team Performance'!N"& Calculation_Sheet!$K$25 &":"&"N"& Calculation_Sheet!$L$25), Calculation_Sheet!$K$26+ ROW($Y11)-ROW($Y$11)),"") -> 24 | R8: =IF(INDEX(INDIRECT("'Team Performance'!A"& Calculation_Sheet!$K$25 &":"&"A"& Calculation_Sheet!$L$25), Calculation_Sheet!$K$26+ ROW($Y11)-ROW($Y$11)) = Calculation_Sheet!$J$26,INDEX(INDIRECT("'Team Performance'!O"& Calculation_Sheet!$K$25 &":"&"O"& Calculation_Sheet!$L$25), Calculation_Sheet!$K$26+ ROW($Y11)-ROW($Y$11)),"") -> 40 | S8: =IF(INDEX(INDIRECT("'Team Performance'!A"& Calculation_Sheet!$K$25 &":"&"A"& Calculation_Sheet!$L$25), Calculation_Sheet!$K$26+ ROW($Y11)-ROW($Y$11)) = Calculation_Sheet!$J$26,INDEX(INDIRECT("'Team Performance'!P"& Calculation_Sheet!$K$25 &":"&"P"& Calculation_Sheet!$L$25), Calculation_Sheet!$K$26+ ROW($Y11)-ROW($Y$11)),"") -> 32 | T8: =IF(INDEX(INDIRECT("'Team Performance'!A"& Calculation_Sheet!$K$25 &":"&"A"& Calculation_Sheet!$L$25), Calculation_Sheet!$K$26+ ROW($Y11)-ROW($Y$11)) = Calculation_Sheet!$J$26,INDEX(INDIRECT("'Team Performance'!Q"& Calculation_Sheet!$K$25 &":"&"Q"& Calculation_Sheet!$L$25), Calculation_Sheet!$K$26+ ROW($Y11)-ROW($Y$11)),"") -> 15 | U8: =IF(INDEX(INDIRECT("'Team Performance'!A"& Calculation_Sheet!$K$25 &":"&"A"& Calculation_Sheet!$L$25), Calculation_Sheet!$K$26+ ROW($Y11)-ROW($Y$11)) = Calculation_Sheet!$J$26,INDEX(INDIRECT("'Team Performance'!S"& Calculation_Sheet!$K$25 &":"&"S"& Calculation_Sheet!$L$25), Calculation_Sheet!$K$26+ ROW($Y11)-ROW($Y$11)),"") -> 0.1364605544
B9: Revenue | C9: =SUMIF('Team Performance'!$E$2:$E$103,Dashboard!$C$1,'Team Performance'!$K$2:$K$103) -> 11934 | I9: =IF(INDEX(INDIRECT("'Team Performance'!A"& Calculation_Sheet!$K$25 &":"&"A"& Calculation_Sheet!$L$25), Calculation_Sheet!$K$26+ ROW($Y12)-ROW($Y$11)) = Calculation_Sheet!$J$26,INDEX(INDIRECT("'Team Performance'!B"& Calculation_Sheet!$K$25 &":"&"B"& Calculation_Sheet!$L$25), Calculation_Sheet!$K$26+ ROW($Y12)-ROW($Y$11)),"") -> Flavia | J9: =IF(INDEX(INDIRECT("'Team Performance'!A"& Calculation_Sheet!$K$25 &":"&"A"& Calculation_Sheet!$L$25), Calculation_Sheet!$K$26+ ROW($Y12)-ROW($Y$11)) = Calculation_Sheet!$J$26,INDEX(INDIRECT("'Team Performance'!F"& Calculation_Sheet!$K$25 &":"&"F"& Calculation_Sheet!$L$25), Calculation_Sheet!$K$26+ ROW($Y12)-ROW($Y$11)),"") -> 7.6 | K9: =IF(INDEX(INDIRECT("'Team Performance'!A"& Calculation_Sheet!$K$25 &":"&"A"& Calculation_Sheet!$L$25), Calculation_Sheet!$K$26+ ROW($Y12)-ROW($Y$11)) = Calculation_Sheet!$J$26,INDEX(INDIRECT("'Team Performance'!G"& Calculation_Sheet!$K$25 &":"&"G"& Calculation_Sheet!$L$25), Calculation_Sheet!$K$26+ ROW($Y12)-ROW($Y$11)),"") -> 6.6 | L9: =IF(INDEX(INDIRECT("'Team Performance'!A"& Calculation_Sheet!$K$25 &":"&"A"& Calculation_Sheet!$L$25), Calculation_Sheet!$K$26+ ROW($Y12)-ROW($Y$11)) = Calculation_Sheet!$J$26,INDEX(INDIRECT("'Team Performance'!M"& Calculation_Sheet!$K$25 &":"&"M"& Calculation_Sheet!$L$25), Calculation_Sheet!$K$26+ ROW($Y12)-ROW($Y$11)),"") -> 302 | M9: =IF(INDEX(INDIRECT("'Team Performance'!A"& Calculation_Sheet!$K$25 &":"&"A"& Calculation_Sheet!$L$25), Calculation_Sheet!$K$26+ ROW($Y12)-ROW($Y$11)) = Calculation_Sheet!$J$26,INDEX(INDIRECT("'Team Performance'!J"& Calculation_Sheet!$K$25 &":"&"J"& Calculation_Sheet!$L$25), Calculation_Sheet!$K$26+ ROW($Y12)-ROW($Y$11)),"") -> 1.973684211 | N9: =IF(INDEX(INDIRECT("'Team Performance'!A"& Calculation_Sheet!$K$25 &":"&"A"& Calculation_Sheet!$L$25), Calculation_Sheet!$K$26+ ROW($Y12)-ROW($Y$11)) = Calculation_Sheet!$J$26,INDEX(INDIRECT("'Team Performance'!I"& Calculation_Sheet!$K$25 &":"&"I"& Calculation_Sheet!$L$25), Calculation_Sheet!$K$26+ ROW($Y12)-ROW($Y$11)),"") -> 15 | O9: =IF(INDEX(INDIRECT("'Team Performance'!A"& Calculation_Sheet!$K$25 &":"&"A"& Calculation_Sheet!$L$25), Calculation_Sheet!$K$26+ ROW($Y12)-ROW($Y$11)) = Calculation_Sheet!$J$26,INDEX(INDIRECT("'Team Performance'!L"& Calculation_Sheet!$K$25 &":"&"L"& Calculation_Sheet!$L$25), Calculation_Sheet!$K$26+ ROW($Y12)-ROW($Y$11)),"") -> 67.10526316 | P9: =IF(INDEX(INDIRECT("'Team Performance'!A"& Calculation_Sheet!$K$25 &":"&"A"& Calculation_Sheet!$L$25), Calculation_Sheet!$K$26+ ROW($Y12)-ROW($Y$11)) = Calculation_Sheet!$J$26,INDEX(INDIRECT("'Team Performance'!K"& Calculation_Sheet!$K$25 &":"&"K"& Calculation_Sheet!$L$25), Calculation_Sheet!$K$26+ ROW($Y12)-ROW($Y$11)),"") -> 510 | Q9: =IF(INDEX(INDIRECT("'Team Performance'!A"& Calculation_Sheet!$K$25 &":"&"A"& Calculation_Sheet!$L$25), Calculation_Sheet!$K$26+ ROW($Y12)-ROW($Y$11)) = Calculation_Sheet!$J$26,INDEX(INDIRECT("'Team Performance'!N"& Calculation_Sheet!$K$25 &":"&"N"& Calculation_Sheet!$L$25), Calculation_Sheet!$K$26+ ROW($Y12)-ROW($Y$11)),"") -> 24 | R9: =IF(INDEX(INDIRECT("'Team Performance'!A"& Calculation_Sheet!$K$25 &":"&"A"& Calculation_Sheet!$L$25), Calculation_Sheet!$K$26+ ROW($Y12)-ROW($Y$11)) = Calculation_Sheet!$J$26,INDEX(INDIRECT("'Team Performance'!O"& Calculation_Sheet!$K$25 &":"&"O"& Calculation_Sheet!$L$25), Calculation_Sheet!$K$26+ ROW($Y12)-ROW($Y$11)),"") -> 37 | S9: =IF(INDEX(INDIRECT("'Team Performance'!A"& Calculation_Sheet!$K$25 &":"&"A"& Calculation_Sheet!$L$25), Calculation_Sheet!$K$26+ ROW($Y12)-ROW($Y$11)) = Calculation_Sheet!$J$26,INDEX(INDIRECT("'Team Performance'!P"& Calculation_Sheet!$K$25 &":"&"P"& Calculation_Sheet!$L$25), Calculation_Sheet!$K$26+ ROW($Y12)-ROW($Y$11)),"") -> 33 | T9: =IF(INDEX(INDIRECT("'Team Performance'!A"& Calculation_Sheet!$K$25 &":"&"A"& Calculation_Sheet!$L$25), Calculation_Sheet!$K$26+ ROW($Y12)-ROW($Y$11)) = Calculation_Sheet!$J$26,INDEX(INDIRECT("'Team Performance'!Q"& Calculation_Sheet!$K$25 &":"&"Q"& Calculation_Sheet!$L$25), Calculation_Sheet!$K$26+ ROW($Y12)-ROW($Y$11)),"") -> 12 | U9: =IF(INDEX(INDIRECT("'Team Performance'!A"& Calculation_Sheet!$K$25 &":"&"A"& Calculation_Sheet!$L$25), Calculation_Sheet!$K$26+ ROW($Y12)-ROW($Y$11)) = Calculation_Sheet!$J$26,INDEX(INDIRECT("'Team Performance'!S"& Calculation_Sheet!$K$25 &":"&"S"& Calculation_Sheet!$L$25), Calculation_Sheet!$K$26+ ROW($Y12)-ROW($Y$11)),"") -> 0.1495098039
B12: Talk Time Productvity | J12: ="Comparison of " & Calculation_Sheet!$J$26 & " against overall performance of " & Dashboard!C1 & " region" -> Comparison of Team A against overall performance of Alabama region
B13: Total Login Hrs | C13: =$C$15 -> 0.8702290076
B14: =SUMIF('Team Performance'!$E$2:$E$103,Dashboard!$C$1,'Team Performance'!$F$2:$F$103) -> 131 | F14: Name | G14: ="Avg Login Time for " & $C$1 -> Avg Login Time for Alabama | I14: Avg Login time by Rep | J14: % Difference | L14: Name | M14: ="Avg Sales/hr for " & $C$1 -> Avg Sales/hr for Alabama | O14: Avg Sales made by Rep | Q14: % Difference | T14: Name | U14: =" Avg Rev/hr for " & $C$1 -> Avg Rev/hr for Alabama | W14: Avg Rev/hr made by Rep | Y14: % Difference
C15: =$B$18/$B$14 -> 0.8702290076
F16: =$I$8 -> Sydnee | G16: =AVERAGEIF(Data[Region],Dashboard!$C$1,Data[Login Hours]) -> 7.705882353 | I16: =$J$8 -> 7 | J16: =((I16*100)/G16)-100 -> -9.160305344 | L16: =$I$8 -> Sydnee | M16: =AVERAGEIF(Data[Region],Dashboard!$C$1,Data[Sales Per Hour]) -> 2.678901988 | O16: =$M$8 -> 3.142857143 | Q16: =((O16*100)/M16)-100 -> 17.31885516 | S16: =$I$8 -> Sydnee | U16: =AVERAGEIF(Data[Region],Dashboard!$C$1,Data[Revenue Per Hour]) -> 91.08266758 | W16: =$O$8 -> 106.8571429 | Y16: =((W16*100)/U16)-100 -> 17.31885516
B17: Talk Time Hrs | F17: =$I$9 -> Flavia | G17: =IF(F17<>"", AVERAGEIF(Data[Region],Dashboard!$C$1,Data[Login Hours]),"") -> 7.705882353 | I17: =$J$9 -> 7.6 | J17: =IF(I17<>"",((I17*100)/G17)-100,"") -> -1.374045802 | L17: =$I$9 -> Flavia | M17: =IF(L17<>"", AVERAGEIF(Data[Region],Dashboard!$C$1,Data[Sales Per Hour]),"") -> 2.678901988 | O17: =$M$9 -> 1.973684211 | Q17: =IF(M17<>"",((O17*100)/M17)-100,"") -> -26.32488163 | S17: =$I$9 -> Flavia | U17: =IF($S$17<>"", AVERAGEIF(Data[Region],Dashboard!$C$1,Data[Revenue Per Hour]),"") -> 91.08266758 | W17: =$O$9 -> 67.10526316 | Y17: =IF(W17<>"",((W17*100)/U17)-100,"") -> -26.32488163
B18: =SUMIF('Team Performance'!$E$2:$E$103,Dashboard!$C$1,'Team Performance'!$G$2:$G$103) -> 114
B19: Call Quality | H19: ="--->" -> ---> | O19: ="--->" -> ---> | W19: ="--->" -> --->
B21: Excellent | C21: =INDEX(Calculation_Sheet!$B$17:$G$21,ROW(2:2),MATCH($C$1,Calculation_Sheet!$B$17:$G$17,0)) -> 426 | F21: Name | G21: ="Avg calls for " & $C$1 -> Avg calls for Alabama | I21: Calls made by Rep | J21: % Difference | L21: Name | M21: ="Avg sales for " & $C$1 -> Avg sales for Alabama | O21: Sales made By Rep | Q21: % Difference | T21: Name | U21: =" Avg Rev for " & $C$1 -> Avg Rev for Alabama | W21: Avg Rev made by Rep | Y21: % Difference
B22: Good | C22: =INDEX(Calculation_Sheet!$B$17:$G$21,ROW(3:3),MATCH($C$1,Calculation_Sheet!$B$17:$G$17,0)) -> 590
B23: Fair | C23: =INDEX(Calculation_Sheet!$B$17:$G$21,ROW(4:4),MATCH($C$1,Calculation_Sheet!$B$17:$G$17,0)) -> 589 | F23: =$I$8 -> Sydnee | G23: =AVERAGEIF(Data[Region],Dashboard!$C$1,Data[Calls]) -> 348.2941176 | I23: =$L$8 -> 358 | J23: =((I23*100)/G23)-100 -> 2.786691437 | L23: =$I$8 -> Sydnee | M23: =AVERAGEIF(Data[Region],Dashboard!$C$1,Data[Sales]) -> 20.64705882 | O23: =$N$8 -> 22 | Q23: =((O23*100)/M23)-100 -> 6.552706553 | S23: =$I$8 -> Sydnee | U23: =AVERAGEIF(Data[Region],Dashboard!$C$1,Data[Revenue]) -> 702 | W23: =$P$8 -> 748 | Y23: =((W23*100)/U23)-100 -> 6.552706553
B24: Poor | C24: =INDEX(Calculation_Sheet!$B$17:$G$21,ROW(5:5),MATCH($C$1,Calculation_Sheet!$B$17:$G$17,0)) -> 210 | F24: =$I$9 -> Flavia | G24: =IF(F24<>"", AVERAGEIF(Data[Region],Dashboard!$C$1,Data[Calls]),"") -> 348.2941176 | I24: =$L$9 -> 302 | J24: =IF(I24<>"",((I24*100)/G24)-100,"") -> -13.2916737 | L24: =$I$9 -> Flavia | M24: =IF(L24<>"", AVERAGEIF(Data[Region],Dashboard!$C$1,Data[Sales]),"") -> 20.64705882 | O24: =$N$9 -> 15 | Q24: =IF(M24<>"",((O24*100)/M24)-100,"") -> -27.35042735 | S24: =$I$9 -> Flavia | U24: =IF($S$17<>"", AVERAGEIF(Data[Region],Dashboard!$C$1,Data[Revenue]),"") -> 702 | W24: =$P$9 -> 510 | Y24: =IF(W24<>"",((W24*100)/U24)-100,"") -> -27.35042735
B26: Customer Statisfaction

Sheet Team Performance
A1: Team | B1: Team Members | C1: Product | D1: Sale Date | E1: Region | F1: Login Hours | G1: Total Talk Time | H1: Total Hold Time | I1: Sales | J1: Sales Per Hour | K1: Revenue | L1: Revenue Per Hour | M1: Calls | N1: Excellent | O1: Good | P1: Fair | Q1: Poor | R1: Total | S1: CSAT% (Customer Satisfaction)
A2: Team A | B2: Sydnee | C2: Product 1 | D2: 41791 | E2: Alabama | F2: 7 | G2: 6 | H2: 0.5 | I2: 22 | J2: 3.142857143 | K2: 748 | L2: 106.8571429 | M2: 358 | N2: 24 | O2: 40 | P2: 32 | Q2: 15 | R2: =SUM(M2:Q2) -> 469 | S2: =SUM(N2:O2)/R2 -> 0.1364605544
A3: Team A | B3: Flavia | C3: Product 1 | D3: 41791 | E3: Alabama | F3: 7.6 | G3: 6.6 | H3: 0.5 | I3: 15 | J3: 1.973684211 | K3: 510 | L3: 67.10526316 | M3: 302 | N3: 24 | O3: 37 | P3: 33 | Q3: 12 | R3: 408 | S3: 0.1495098039
A4: Team B | B4: Xantha | C4: Product 1 | D4: 41791 | E4: Alabama | F4: 7.9 | G4: 6.9 | H4: 0.5 | I4: 24 | J4: 3.037974684 | K4: 816 | L4: 103.2911392 | M4: 335 | N4: 28 | O4: 31 | P4: 33 | Q4: 15 | R4: 442 | S4: 0.1334841629
A5: Team B | B5: Gay | C5: Product 1 | D5: 41791 | E5: Alabama | F5: 7.3 | G5: 6.3 | H5: 0.5 | I5: 18 | J5: 2.465753425 | K5: 612 | L5: 83.83561644 | M5: 316 | N5: 28 | O5: 33 | P5: 34 | Q5: 11 | R5: 422 | S5: 0.144549763
A6: Team C | B6: Shaine | C6: Product 1 | D6: 41791 | E6: Alabama | F6: 8.3 | G6: 7.3 | H6: 0.5 | I6: 19 | J6: 2.289156627 | K6: 646 | L6: 77.8313253 | M6: 356 | N6: 28 | O6: 38 | P6: 40 | Q6: 14 | R6: 476 | S6: 0.1386554622
A7: Team D | B7: Dara | C7: Product 1 | D7: 41791 | E7: Alabama | F7: 8 | G7: 7 | H7: 0.5 | I7: 18 | J7: 2.25 | K7: 612 | L7: 76.5 | M7: 364 | N7: 21 | O7: 32 | P7: 37 | Q7: 13 | R7: 467 | S7: 0.113490364
A8: Team D | B8: Lois | C8: Product 1 | D8: 41791 | E8: Alabama | F8: 7.5 | G8: 6.5 | H8: 0.5 | I8: 16 | J8: 2.133333333 | K8: 544 | L8: 72.53333333 | M8: 327 | N8: 28 | O8: 33 | P8: 37 | Q8: 12 | R8: 437 | S8: 0.1395881007
A9: Team E | B9: Nevada | C9: Product 1 | D9: 41791 | E9: Alabama | F9: 8.3 | G9: 7.3 | H9: 0.5 | I9: 23 | J9: 2.771084337 | K9: 782 | L9: 94.21686747 | M9: 320 | N9: 23 | O9: 30 | P9: 39 | Q9: 12 | R9: 424 | S9: 0.125
A10: Team E | B10: Miriam | C10: Product 1 | D10: 41791 | E10: Alabama | F10: 8 | G10: 7 | H10: 0.5 | I10: 24 | J10: 3 | K10: 816 | L10: 102 | M10: 339 | N10: 30 | O10: 40 | P10: 30 | Q10: 11 | R10: 450 | S10: 0.1555555556
A11: Team F | B11: Shelby | C11: Product 1 | D11: 41791 | E11: Alabama | F11: 7.5 | G11: 6.5 | H11: 0.5 | I11: 22 | J11: 2.933333333 | K11: 748 | L11: 99.73333333 | M11: 389 | N11: 20 | O11: 39 | P11: 39 | Q11: 13 | R11: 500 | S11: 0.118
A12: Team G | B12: Katelyn | C12: Product 1 | D12: 41791 | E12: Alabama | F12: 7 | G12: 6 | H12: 0.5 | I12: 21 | J12: 3 | K12: 714 | L12: 102 | M12: 322 | N12: 24 | O12: 30 | P12: 32 | Q12: 14 | R12: 422 | S12: 0.1279620853
A13: Team G | B13: Dana | C13: Product 1 | D13: 41791 | E13: Alabama | F13: 7.6 | G13: 6.6 | H13: 0.5 | I13: 22 | J13: 2.894736842 | K13: 748 | L13: 98.42105263 | M13: 396 | N13: 27 | O13: 30 | P13: 38 | Q13: 15 | R13: 506 | S13: 0.1126482213
A14: Team H | B14: Carolyn | C14: Product 1 | D14: 41791 | E14: Alabama | F14: 7.9 | G14: 6.9 | H14: 0.5 | I14: 23 | J14: 2.911392405 | K14: 782 | L14: 98.98734177 | M14: 382 | N14: 23 | O14: 33 | P14: 33 | Q14: 11 | R14: 482 | S14: 0.1161825726
A15: Team H | B15: Serena | C15: Product 1 | D15: 41791 | E15: Alabama | F15: 7.3 | G15: 6.3 | H15: 0.5 | I15: 15 | J15: 2.054794521 | K15: 510 | L15: 69.8630137 | M15: 359 | N15: 25 | O15: 37 | P15: 34 | Q15: 10 | R15: 465 | S15: 0.1333333333
A16: Team I | B16: Juliet | C16: Product 1 | D16: 41791 | E16: Alabama | F16: 8.3 | G16: 7.3 | H16: 0.5 | I16: 24 | J16: 2.891566265 | K16: 816 | L16: 98.31325301 | M16: 327 | N16: 20 | O16: 34 | P16: 32 | Q16: 10 | R16: 423 | S16: 0.1276595745
A17: Team I | B17: Serina | C17: Product 1 | D17: 41791 | E17: Alabama | F17: 8 | G17: 7 | H17: 0.5 | I17: 25 | J17: 3.125 | K17: 850 | L17: 106.25 | M17: 333 | N17: 29 | O17: 34 | P17: 35 | Q17: 12 | R17: 443 | S17: 0.1422121896
A18: Team J | B18: Luke | C18: Product 1 | D18: 41791 | E18: Alabama | F18: 7.5 | G18: 6.5 | H18: 0.5 | I18: 20 | J18: 2.666666667 | K18: 680 | L18: 90.66666667 | M18: 396 | N18: 24 | O18: 39 | P18: 31 | Q18: 10 | R18: 500 | S18: 0.126
A19: Team A | B19: Amber | C19: Product 2 | D19: 41791 | E19: California | F19: 7.5 | G19: 6.5 | H19: 0.7 | I19: 19 | J19: 2.533333333 | K19: 646 | L19: 86.13333333 | M19: 323 | N19: 20 | O19: 35 | P19: 34 | Q19: 15 | R19: 427 | S19: 0.1288056206
A20: Team A | B20: Guinevere | C20: Product 2 | D20: 41791 | E20: California | F20: 7 | G20: 6 | H20: 0.7 | I20: 19 | J20: 2.714285714 | K20: 646 | L20: 92.28571429 | M20: 380 | N20: 21 | O20: 32 | P20: 33 | Q20: 11 | R20: 477 | S20: 0.1111111111
A21: Team B | B21: Winifred | C21: Product 2 | D21: 41791 | E21: California | F21: 7.6 | G21: 6.6 | H21: 0.7 | I21: 18 | J21: 2.368421053 | K21: 612 | L21: 80.52631579 | M21: 327 | N21: 23 | O21: 30 | P21: 33 | Q21: 11 | R21: 424 | S21: 0.125
A22: Team B | B22: Inez | C22: Product 2 | D22: 41791 | E22: California | F22: 7.9 | G22: 6.9 | H22: 0.7 | I22: 25 | J22: 3.164556962 | K22: 850 | L22: 107.5949367 | M22: 330 | N22: 24 | O22: 32 | P22: 30 | Q22: 10 | R22: 426 | S22: 0.1314553991
A23: Team C | B23: Maris | C23: Product 2 | D23: 41791 | E23: California | F23: 7.3 | G23: 6.3 | H23: 0.7 | I23: 19 | J23: 2.602739726 | K23: 646 | L23: 88.49315068 | M23: 354 | N23: 28 | O23: 38 | P23: 36 | Q23: 11 | R23: 467 | S23: 0.1413276231
A24: Team D | B24: Daria | C24: Product 2 | D24: 41791 | E24: California | F24: 8.3 | G24: 7.3 | H24: 0.7 | I24: 20 | J24: 2.409638554 | K24: 680 | L24: 81.92771084 | M24: 357 | N24: 24 | O24: 30 | P24: 39 | Q24: 11 | R24: 461 | S24: 0.1171366594
A25: Team D | B25: Madeson | C25: Product 2 | D25: 41791 | E25: California | F25: 8 | G25: 7 | H25: 0.7 | I25: 16 | J25: 2 | K25: 544 | L25: 68 | M25: 394 | N25: 29 | O25: 37 | P25: 34 | Q25: 11 | R25: 505 | S25: 0.1306930693
A26: Team E | B26: Mercedes | C26: Product 2 | D26: 41791 | E26: California | F26: 7.3 | G26: 6.3 | H26: 0.7 | I26: 25 | J26: 3.424657534 | K26: 850 | L26: 116.4383562 | M26: 338 | N26: 24 | O26: 34 | P26: 33 | Q26: 12 | R26: 441 | S26: 0.1315192744
A27: Team E | B27: Quin | C27: Product 2 | D27: 41791 | E27: California | F27: 8.3 | G27: 7.3 | H27: 0.7 | I27: 16 | J27: 1.927710843 | K27: 544 | L27: 65.54216867 | M27: 395 | N27: 23 | O27: 35 | P27: 37 | Q27: 12 | R27: 502 | S27: 0.1155378486
A28: Team F | B28: Riley | C28: Product 2 | D28: 41791 | E28: California | F28: 8 | G28: 7 | H28: 0.7 | I28: 23 | J28: 2.875 | K28: 782 | L28: 97.75 | M28: 334 | N28: 30 | O28: 38 | P28: 30 | Q28: 11 | R28: 443 | S28: 0.1534988713
A29: Team G | B29: Pamela | C29: Product 2 | D29: 41791 | E29: California | F29: 7.5 | G29: 6.5 | H29: 0.7 | I29: 22 | J29: 2.933333333 | K29: 748 | L29: 99.73333333 | M29: 326 | N29: 29 | O29: 33 | P29: 38 | Q29: 13 | R29: 439 | S29: 0.1412300683
A30: Team G | B30: Regina | C30: Product 2 | D30: 41791 | E30: California | F30: 7 | G30: 6 | H30: 0.7 | I30: 20 | J30: 2.857142857 | K30: 680 | L30: 97.14285714 | M30: 372 | N30: 21 | O30: 39 | P30: 35 | Q30: 13 | R30: 480 | S30: 0.125
A31: Team H | B31: Zenia | C31: Product 2 | D31: 41791 | E31: California | F31: 7.6 | G31: 6.6 | H31: 0.7 | I31: 21 | J31: 2.763157895 | K31: 714 | L31: 93.94736842 | M31: 316 | N31: 28 | O31: 36 | P31: 35 | Q31: 11 | R31: 426 | S31: 0.1502347418
A32: Team H | B32: Hilary | C32: Product 2 | D32: 41791 | E32: California | F32: 7.9 | G32: 6.9 | H32: 0.7 | I32: 19 | J32: 2.405063291 | K32: 646 | L32: 81.7721519 | M32: 302 | N32: 28 | O32: 32 | P32: 34 | Q32: 15 | R32: 411 | S32: 0.1459854015
A33: Team I | B33: Karyn | C33: Product 2 | D33: 41791 | E33: California | F33: 7.3 | G33: 6.3 | H33: 0.7 | I33: 19 | J33: 2.602739726 | K33: 646 | L33: 88.49315068 | M33: 317 | N33: 25 | O33: 32 | P33: 38 | Q33: 13 | R33: 425 | S33: 0.1341176471
A34: Team J | B34: Jena | C34: Product 2 | D34: 41791 | E34: California | F34: 8.3 | G34: 7.3 | H34: 0.7 | I34: 22 | J34: 2.65060241 | K34: 748 | L34: 90.12048193 | M34: 386 | N34: 20 | O34: 39 | P34: 38 | Q34: 12 | R34: =SUM(M34:Q34) -> 495 | S34: =SUM(N34:O34)/R34 -> 0.1191919192
A35: Team J | B35: Addison | C35: Product 2 | D35: 41791 | E35: California | F35: 8 | G35: 7 | H35: 0.7 | I35: 18 | J35: 2.25 | K35: 612 | L35: 76.5 | M35: 350 | N35: 29 | O35: 30 | P35: 32 | Q35: 12 | R35: 453 | S35: 0.1302428256
A36: Team A | B36: Constance | C36: Product 1 | D36: 41791 | E36: Colorado | F36: 8 | G36: 7 | H36: 0.3 | I36: 16 | J36: 2 | K36: 544 | L36: 68 | M36: 310 | N36: 29 | O36: 32 | P36: 30 | Q36: 11 | R36: 412 | S36: 0.1480582524
A37: Team A | B37: Darryl | C37: Product 1 | D37: 41791 | E37: Colorado | F37: 7.5 | G37: 6.5 | H37: 0.3 | I37: 20 | J37: 2.666666667 | K37: 680 | L37: 90.66666667 | M37: 394 | N37: 30 | O37: 38 | P37: 35 | Q37: 13 | R37: 510 | S37: 0.1333333333
A38: Team B | B38: Iona | C38: Product 1 | D38: 41791 | E38: Colorado | F38: 7 | G38: 6 | H38: 0.3 | I38: 23 | J38: 3.285714286 | K38: 782 | L38: 111.7142857 | M38: 369 | N38: 21 | O38: 40 | P38: 34 | Q38: 10 | R38: 474 | S38: 0.1286919831
A39: Team C | B39: Illana | C39: Product 1 | D39: 41791 | E39: Colorado | F39: 7.6 | G39: 6.6 | H39: 0.3 | I39: 15 | J39: 1.973684211 | K39: 510 | L39: 67.10526316 | M39: 356 | N39: 21 | O39: 35 | P39: 35 | Q39: 10 | R39: 457 | S39: 0.1225382932
A40: Team C | B40: Jana | C40: Product 1 | D40: 41791 | E40: Colorado | F40: 7.9 | G40: 6.9 | H40: 0.3 | I40: 22 | J40: 2.784810127 | K40: 748 | L40: 94.6835443 | M40: 341 | N40: 22 | O40: 30 | P40: 31 | Q40: 14 | R40: 438 | S40: 0.1187214612
A41: Team D | B41: Ariel | C41: Product 1 | D41: 41791 | E41: Colorado | F41: 7.3 | G41: 6.3 | H41: 0.3 | I41: 15 | J41: 2.054794521 | K41: 510 | L41: 69.8630137 | M41: 301 | N41: 27 | O41: 39 | P41: 39 | Q41: 11 | R41: 417 | S41: 0.1582733813
A42: Team D | B42: Ariana | C42: Product 1 | D42: 41791 | E42: Colorado | F42: 8.3 | G42: 7.3 | H42: 0.3 | I42: 24 | J42: 2.891566265 | K42: 816 | L42: 98.31325301 | M42: 369 | N42: 21 | O42: 40 | P42: 34 | Q42: 15 | R42: 479 | S42: 0.127348643
A43: Team E | B43: Courtney | C43: Product 1 | D43: 41791 | E43: Colorado | F43: 7.9 | G43: 6.9 | H43: 0.3 | I43: 23 | J43: 2.911392405 | K43: 782 | L43: 98.98734177 | M43: 371 | N43: 29 | O43: 30 | P43: 38 | Q43: 12 | R43: 480 | S43: 0.1229166667
A44: Team F | B44: Ivory | C44: Product 1 | D44: 41791 | E44: Colorado | F44: 7.3 | G44: 6.3 | H44: 0.3 | I44: 19 | J44: 2.602739726 | K44: 646 | L44: 88.49315068 | M44: 316 | N44: 30 | O44: 40 | P44: 36 | Q44: 15 | R44: 437 | S44: 0.1601830664
A45: Team F | B45: Cleo | C45: Product 1 | D45: 41791 | E45: Colorado | F45: 8.3 | G45: 7.3 | H45: 0.3 | I45: 20 | J45: 2.409638554 | K45: 680 | L45: 81.92771084 | M45: 307 | N45: 28 | O45: 33 | P45: 32 | Q45: 12 | R45: 412 | S45: 0.1480582524
A46: Team G | B46: Rhoda | C46: Product 1 | D46: 41791 | E46: Colorado | F46: 8 | G46: 7 | H46: 0.3 | I46: 21 | J46: 2.625 | K46: 714 | L46: 89.25 | M46: 339 | N46: 25 | O46: 32 | P46: 31 | Q46: 14 | R46: 441 | S46: 0.1292517007
A47: Team G | B47: Kirby | C47: Product 1 | D47: 41791 | E47: Colorado | F47: 7.5 | G47: 6.5 | H47: 0.3 | I47: 16 | J47: 2.133333333 | K47: 544 | L47: 72.53333333 | M47: 352 | N47: 23 | O47: 39 | P47: 32 | Q47: 14 | R47: 460 | S47: 0.1347826087
A48: Team H | B48: Phyllis | C48: Product 1 | D48: 41791 | E48: Colorado | F48: 7 | G48: 6 | H48: 0.3 | I48: 17 | J48: 2.428571429 | K48: 578 | L48: 82.57142857 | M48: 334 | N48: 29 | O48: 31 | P48: 30 | Q48: 11 | R48: 435 | S48: 0.1379310345
A49: Team I | B49: Gretchen | C49: Product 1 | D49: 41791 | E49: Colorado | F49: 7.6 | G49: 6.6 | H49: 0.3 | I49: 17 | J49: 2.236842105 | K49: 578 | L49: 76.05263158 | M49: 323 | N49: 27 | O49: 38 | P49: 36 | Q49: 11 | R49: 435 | S49: 0.1494252874
A50: Team I | B50: Noelani | C50: Product 1 | D50: 41791 | E50: Colorado | F50: 7.9 | G50: 6.9 | H50: 0.3 | I50: 16 | J50: 2.025316456 | K50: 544 | L50: 68.86075949 | M50: 365 | N50: 30 | O50: 35 | P50: 33 | Q50: 14 | R50: 477 | S50: 0.1362683438
A51: Team J | B51: Fleur | C51: Product 1 | D51: 41791 | E51: Colorado | F51: 7.3 | G51: 6.3 | H51: 0.3 | I51: 24 | J51: 3.287671233 | K51: 816 | L51: 111.7808219 | M51: 329 | N51: 26 | O51: 36 | P51: 39 | Q51: 10 | R51: 440 | S51: 0.1409090909
A52: Team J | B52: Alec | C52: Product 1 | D52: 41791 | E52: Colorado | F52: 8.3 | G52: 7.3 | H52: 0.3 | I52: 21 | J52: 2.530120482 | K52: 714 | L52: 86.02409639 | M52: 300 | N52: 23 | O52: 39 | P52: 34 | Q52: 14 | R52: 410 | S52: 0.1512195122
A53: Team A | B53: Nola | C53: Product 2 | D53: 41791 | E53: Connecticut | F53: 8.3 | G53: 7.3 | H53: 0.8 | I53: 21 | J53: 2.530120482 | K53: 714 | L53: 86.02409639 | M53: 327 | N53: 25 | O53: 36 | P53: 33 | Q53: 12 | R53: 433 | S53: 0.1408775982
A54: Team A | B54: Farrah | C54: Product 2 | D54: 41791 | E54: Connecticut | F54: 8 | G54: 7 | H54: 0.8 | I54: 24 | J54: 3 | K54: 816 | L54: 102 | M54: 321 | N54: 27 | O54: 32 | P54: 40 | Q54: 14 | R54: 434 | S54: 0.1359447005
A55: Team B | B55: Keelie | C55: Product 2 | D55: 41791 | E55: Connecticut | F55: 7.5 | G55: 6.5 | H55: 0.8 | I55: 24 | J55: 3.2 | K55: 816 | L55: 108.8 | M55: 365 | N55: 29 | O55: 34 | P55: 36 | Q55: 14 | R55: 478 | S55: 0.1317991632
A56: Team C | B56: Renee | C56: Product 2 | D56: 41791 | E56: Connecticut | F56: 7 | G56: 6 | H56: 0.8 | I56: 23 | J56: 3.285714286 | K56: 782 | L56: 111.7142857 | M56: 397 | N56: 23 | O56: 32 | P56: 33 | Q56: 13 | R56: 498 | S56: 0.1104417671
A57: Team C | B57: Audra | C57: Product 2 | D57: 41791 | E57: Connecticut | F57: 7.6 | G57: 6.6 | H57: 0.8 | I57: 16 | J57: 2.105263158 | K57: 544 | L57: 71.57894737 | M57: 376 | N57: 28 | O57: 39 | P57: 33 | Q57: 12 | R57: 488 | S57: 0.137295082
A58: Team D | B58: Hermione | C58: Product 2 | D58: 41791 | E58: Connecticut | F58: 7.9 | G58: 6.9 | H58: 0.8 | I58: 16 | J58: 2.025316456 | K58: 544 | L58: 68.86075949 | M58: 398 | N58: 29 | O58: 31 | P58: 33 | Q58: 11 | R58: 502 | S58: 0.1195219124
A59: Team D | B59: Kendall | C59: Product 2 | D59: 41791 | E59: Connecticut | F59: 7.3 | G59: 6.3 | H59: 0.8 | I59: 24 | J59: 3.287671233 | K59: 816 | L59: 111.7808219 | M59: 338 | N59: 28 | O59: 35 | P59: 39 | Q59: 15 | R59: 455 | S59: 0.1384615385
A60: Team E | B60: Amanda | C60: Product 2 | D60: 41791 | E60: Connecticut | F60: 7.6 | G60: 6.6 | H60: 0.8 | I60: 17 | J60: 2.236842105 | K60: 578 | L60: 76.05263158 | M60: 347 | N60: 20 | O60: 40 | P60: 35 | Q60: 15 | R60: 457 | S60: 0.1312910284
A61: Team F | B61: Stacy | C61: Product 2 | D61: 41791 | E61: Connecticut | F61: 7.9 | G61: 6.9 | H61: 0.8 | I61: 25 | J61: 3.164556962 | K61: 850 | L61: 107.5949367 | M61: 383 | N61: 30 | O61: 30 | P61: 36 | Q61: 10 | R61: 489 | S61: 0.1226993865
A62: Team F | B62: Patricia | C62: Product 2 | D62: 41791 | E62: Connecticut | F62: 7.3 | G62: 6.3 | H62: 0.8 | I62: 19 | J62: 2.602739726 | K62: 646 | L62: 88.49315068 | M62: 378 | N62: 24 | O62: 35 | P62: 37 | Q62: 13 | R62: 487 | S62: 0.1211498973
A63: Team G | B63: Deanna | C63: Product 2 | D63: 41791 | E63: Connecticut | F63: 8.3 | G63: 7.3 | H63: 0.8 | I63: 20 | J63: 2.409638554 | K63: 680 | L63: 81.92771084 | M63: 390 | N63: 21 | O63: 33 | P63: 35 | Q63: 13 | R63: 492 | S63: 0.1097560976
A64: Team G | B64: Rae | C64: Product 2 | D64: 41791 | E64: Connecticut | F64: 8 | G64: 7 | H64: 0.8 | I64: 25 | J64: 3.125 | K64: 850 | L64: 106.25 | M64: 373 | N64: 28 | O64: 31 | P64: 40 | Q64: 10 | R64: 482 | S64: 0.122406639
A65: Team H | B65: Ashely | C65: Product 2 | D65: 41791 | E65: Connecticut | F65: 7.5 | G65: 6.5 | H65: 0.8 | I65: 21 | J65: 2.8 | K65: 714 | L65: 95.2 | M65: 391 | N65: 27 | O65: 31 | P65: 35 | Q65: 13 | R65: 497 | S65: 0.1167002012
A66: Team I | B66: Giselle | C66: Product 2 | D66: 41791 | E66: Connecticut | F66: 7 | G66: 6 | H66: 0.8 | I66: 16 | J66: 2.285714286 | K66: 544 | L66: 77.71428571 | M66: 400 | N66: 30 | O66: 32 | P66: 38 | Q66: 15 | R66: =SUM(M66:Q66) -> 515 | S66: =SUM(N66:O66)/R66 -> 0.1203883495
A67: Team I | B67: Portia | C67: Product 2 | D67: 41791 | E67: Connecticut | F67: 7.6 | G67: 6.6 | H67: 0.8 | I67: 16 | J67: 2.105263158 | K67: 544 | L67: 71.57894737 | M67: 396 | N67: 25 | O67: 39 | P67: 37 | Q67: 11 | R67: 508 | S67: 0.125984252
A68: Team J | B68: Illiana | C68: Product 2 | D68: 41791 | E68: Connecticut | F68: 7.9 | G68: 6.9 | H68: 0.8 | I68: 22 | J68: 2.784810127 | K68: 748 | L68: 94.6835443 | M68: 332 | N68: 22 | O68: 39 | P68: 32 | Q68: 11 | R68: 436 | S68: 0.1399082569
A69: Team J | B69: Rafael | C69: Product 2 | D69: 41791 | E69: Connecticut | F69: 7.3 | G69: 6.3 | H69: 0.8 | I69: 15 | J69: 2.054794521 | K69: 510 | L69: 69.8630137 | M69: 316 | N69: 29 | O69: 35 | P69: 33 | Q69: 10 | R69: 423 | S69: 0.1513002364
A70: Team A | B70: Libby | C70: Product 1 | D70: 41791 | E70: Florida | F70: 7.3 | G70: 6.3 | H70: 0.2 | I70: 23 | J70: 3.150684932 | K70: 782 | L70: 107.1232877 | M70: 367 | N70: 27 | O70: 37 | P70: 36 | Q70: 12 | R70: 479 | S70: 0.133611691
A71: Team B | B71: Rowan | C71: Product 1 | D71: 41791 | E71: Florida | F71: 8.3 | G71: 7.3 | H71: 0.2 | I71: 25 | J71: 3.012048193 | K71: 850 | L71: 102.4096386 | M71: 348 | N71: 20 | O71: 38 | P71: 30 | Q71: 10 | R71: 446 | S71: 0.130044843
A72: Team B | B72: Brynne | C72: Product 1 | D72: 41791 | E72: Florida | F72: 8 | G72: 7 | H72: 0.2 | I72: 19 | J72: 2.375 | K72: 646 | L72: 80.75 | M72: 370 | N72: 27 | O72: 38 | P72: 33 | Q72: 14 | R72: 482 | S72: 0.1348547718
A73: Team C | B73: Olympia | C73: Product 1 | D73: 41791 | E73: Florida | F73: 7.5 | G73: 6.5 | H73: 0.2 | I73: 24 | J73: 3.2 | K73: 816 | L73: 108.8 | M73: 379 | N73: 20 | O73: 36 | P73: 31 | Q73: 14 | R73: 480 | S73: 0.1166666667
A74: Team C | B74: Rosalyn | C74: Product 1 | D74: 41791 | E74: Florida | F74: 7 | G74: 6 | H74: 0.2 | I74: 16 | J74: 2.285714286 | K74: 544 | L74: 77.71428571 | M74: 353 | N74: 27 | O74: 37 | P74: 35 | Q74: 12 | R74: 464 | S74: 0.1379310345
A75: Team D | B75: Aileen | C75: Product 1 | D75: 41791 | E75: Florida | F75: 7.6 | G75: 6.6 | H75: 0.2 | I75: 19 | J75: 2.5 | K75: 646 | L75: 85 | M75: 324 | N75: 22 | O75: 36 | P75: 39 | Q75: 14 | R75: 435 | S75: 0.1333333333
A76: Team E | B76: Lacy | C76: Product 1 | D76: 41791 | E76: Florida | F76: 7.9 | G76: 6.9 | H76: 0.2 | I76: 22 | J76: 2.784810127 | K76: 748 | L76: 94.6835443 | M76: 377 | N76: 27 | O76: 30 | P76: 34 | Q76: 10 | R76: 478 | S76: 0.1192468619
A77: Team E | B77: Madeline | C77: Product 1 | D77: 41791 | E77: Florida | F77: 7 | G77: 6 | H77: 0.2 | I77: 23 | J77: 3.285714286 | K77: 782 | L77: 111.7142857 | M77: 368 | N77: 30 | O77: 40 | P77: 38 | Q77: 15 | R77: 491 | S77: 0.1425661914
A78: Team F | B78: Dai | C78: Product 1 | D78: 41791 | E78: Florida | F78: 7.6 | G78: 6.6 | H78: 0.2 | I78: 16 | J78: 2.105263158 | K78: 544 | L78: 71.57894737 | M78: 336 | N78: 23 | O78: 38 | P78: 35 | Q78: 10 | R78: 442 | S78: 0.1380090498
A79: Team F | B79: Britanney | C79: Product 1 | D79: 41791 | E79: Florida | F79: 7.9 | G79: 6.9 | H79: 0.2 | I79: 15 | J79: 1.898734177 | K79: 510 | L79: 64.55696203 | M79: 357 | N79: 27 | O79: 30 | P79: 31 | Q79: 12 | R79: 457 | S79: 0.124726477
A80: Team G | B80: Mallory | C80: Product 1 | D80: 41791 | E80: Florida | F80: 7.3 | G80: 6.3 | H80: 0.2 | I80: 19 | J80: 2.602739726 | K80: 646 | L80: 88.49315068 | M80: 330 | N80: 30 | O80: 33 | P80: 40 | Q80: 13 | R80: 446 | S80: 0.1412556054
A81: Team H | B81: Frances | C81: Product 1 | D81: 41791 | E81: Florida | F81: 8.3 | G81: 7.3 | H81: 0.2 | I81: 16 | J81: 1.927710843 | K81: 544 | L81: 65.54216867 | M81: 394 | N81: 27 | O81: 37 | P81: 37 | Q81: 10 | R81: 505 | S81: 0.1267326733
A82: Team H | B82: Nomlanga | C82: Product 1 | D82: 41791 | E82: Florida | F82: 8 | G82: 7 | H82: 0.2 | I82: 23 | J82: 2.875 | K82: 782 | L82: 97.75 | M82: 368 | N82: 26 | O82: 31 | P82: 38 | Q82: 11 | R82: 474 | S82: 0.1202531646
A83: Team I | B83: Galena | C83: Product 1 | D83: 41791 | E83: Florida | F83: 7.5 | G83: 6.5 | H83: 0.2 | I83: 17 | J83: 2.266666667 | K83: 578 | L83: 77.06666667 | M83: 397 | N83: 29 | O83: 31 | P83: 32 | Q83: 10 | R83: 499 | S83: 0.120240481
A84: Team I | B84: Melodie | C84: Product 1 | D84: 41791 | E84: Florida | F84: 7 | G84: 6 | H84: 0.2 | I84: 23 | J84: 3.285714286 | K84: 782 | L84: 111.7142857 | M84: 319 | N84: 27 | O84: 38 | P84: 40 | Q84: 13 | R84: 437 | S84: 0.1487414188
A85: Team J | B85: Jeremy | C85: Product 1 | D85: 41791 | E85: Florida | F85: 7.6 | G85: 6.6 | H85: 0.2 | I85: 15 | J85: 1.973684211 | K85: 510 | L85: 67.10526316 | M85: 384 | N85: 21 | O85: 37 | P85: 39 | Q85: 11 | R85: 492 | S85: 0.1178861789
A86: Team J | B86: Hoyt | C86: Product 1 | D86: 41791 | E86: Florida | F86: 7.6 | G86: 6.6 | H86: 0.2 | I86: 15 | J86: 1.973684211 | K86: 510 | L86: 67.10526316 | M86: 384 | N86: 21 | O86: 37 | P86: 39 | Q86: 11 | R86: 492 | S86: 0.1178861789
A87: Team A | B87: Tashya | C87: Product 2 | D87: 41791 | E87: Hawaii | F87: 7.9 | G87: 6.9 | H87: 0.6 | I87: 24 | J87: 3.037974684 | K87: 816 | L87: 103.2911392 | M87: 379 | N87: 23 | O87: 37 | P87: 33 | Q87: 11 | R87: 483 | S87: 0.1242236025
A88: Team B | B88: Quyn | C88: Product 2 | D88: 41791 | E88: Hawaii | F88: 7.3 | G88: 6.3 | H88: 0.6 | I88: 21 | J88: 2.876712329 | K88: 714 | L88: 97.80821918 | M88: 381 | N88: 23 | O88: 34 | P88: 36 | Q88: 11 | R88: 485 | S88: 0.1175257732
A89: Team B | B89: Sierra | C89: Product 2 | D89: 41791 | E89: Hawaii | F89: 8.3 | G89: 7.3 | H89: 0.6 | I89: 15 | J89: 1.807228916 | K89: 510 | L89: 61.44578313 | M89: 302 | N89: 21 | O89: 34 | P89: 36 | Q89: 13 | R89: 406 | S89: 0.1354679803
A90: Team C | B90: Camille | C90: Product 2 | D90: 41791 | E90: Hawaii | F90: 8 | G90: 7 | H90: 0.6 | I90: 21 | J90: 2.625 | K90: 714 | L90: 89.25 | M90: 348 | N90: 22 | O90: 30 | P90: 37 | Q90: 14 | R90: 451 | S90: 0.1152993348
A91: Team C | B91: April | C91: Product 2 | D91: 41791 | E91: Hawaii | F91: 7.5 | G91: 6.5 | H91: 0.6 | I91: 15 | J91: 2 | K91: 510 | L91: 68 | M91: 324 | N91: 25 | O91: 32 | P91: 31 | Q91: 14 | R91: 426 | S91: 0.1338028169
A92: Team D | B92: Cheyenne | C92: Product 2 | D92: 41791 | E92: Hawaii | F92: 7 | G92: 6 | H92: 0.6 | I92: 19 | J92: 2.714285714 | K92: 646 | L92: 92.28571429 | M92: 307 | N92: 24 | O92: 33 | P92: 40 | Q92: 11 | R92: 415 | S92: 0.1373493976
A93: Team E | B93: Heather | C93: Product 2 | D93: 41791 | E93: Hawaii | F93: 7.6 | G93: 6.6 | H93: 0.6 | I93: 17 | J93: 2.236842105 | K93: 578 | L93: 76.05263158 | M93: 398 | N93: 28 | O93: 31 | P93: 32 | Q93: 10 | R93: 499 | S93: 0.1182364729
A94: Team E | B94: Zia | C94: Product 2 | D94: 41791 | E94: Hawaii | F94: 7.5 | G94: 6.5 | H94: 0.6 | I94: 25 | J94: 3.333333333 | K94: 850 | L94: 113.3333333 | M94: 353 | N94: 22 | O94: 31 | P94: 37 | Q94: 13 | R94: 456 | S94: 0.1162280702
A95: Team F | B95: Shelley | C95: Product 2 | D95: 41791 | E95: Hawaii | F95: 7 | G95: 6 | H95: 0.6 | I95: 20 | J95: 2.857142857 | K95: 680 | L95: 97.14285714 | M95: 333 | N95: 20 | O95: 31 | P95: 34 | Q95: 13 | R95: 431 | S95: 0.1183294664
A96: Team F | B96: Tatum | C96: Product 2 | D96: 41791 | E96: Hawaii | F96: 7.6 | G96: 6.6 | H96: 0.6 | I96: 18 | J96: 2.368421053 | K96: 612 | L96: 80.52631579 | M96: 370 | N96: 22 | O96: 33 | P96: 32 | Q96: 15 | R96: 472 | S96: 0.1165254237
A97: Team G | B97: Medge | C97: Product 2 | D97: 41791 | E97: Hawaii | F97: 7.9 | G97: 6.9 | H97: 0.6 | I97: 15 | J97: 1.898734177 | K97: 510 | L97: 64.55696203 | M97: 392 | N97: 27 | O97: 30 | P97: 30 | Q97: 12 | R97: 491 | S97: 0.116089613
A98: Team H | B98: Xerxes | C98: Product 2 | D98: 41791 | E98: Hawaii | F98: 7.3 | G98: 6.3 | H98: 0.6 | I98: 24 | J98: 3.287671233 | K98: 816 | L98: 111.7808219 | M98: 303 | N98: 29 | O98: 38 | P98: 32 | Q98: 13 | R98: =SUM(M98:Q98) -> 415 | S98: =SUM(N98:O98)/R98 -> 0.1614457831
A99: Team H | B99: Kirestin | C99: Product 2 | D99: 41791 | E99: Hawaii | F99: 8.3 | G99: 7.3 | H99: 0.6 | I99: 16 | J99: 1.927710843 | K99: 544 | L99: 65.54216867 | M99: 376 | N99: 25 | O99: 36 | P99: 33 | Q99: 11 | R99: 481 | S99: 0.1268191268
A100: Team I | B100: Calista | C100: Product 2 | D100: 41791 | E100: Hawaii | F100: 8 | G100: 7 | H100: 0.6 | I100: 15 | J100: 1.875 | K100: 510 | L100: 63.75 | M100: 327 | N100: 27 | O100: 33 | P100: 37 | Q100: 13 | R100: 437 | S100: 0.1372997712
A101: Team I | B101: Yolanda | C101: Product 2 | D101: 41791 | E101: Hawaii | F101: 7.5 | G101: 6.5 | H101: 0.6 | I101: 21 | J101: 2.8 | K101: 714 | L101: 95.2 | M101: 329 | N101: 24 | O101: 32 | P101: 33 | Q101: 14 | R101: 432 | S101: 0.1296296296
A102: Team J | B102: Oscar | C102: Product 2 | D102: 41791 | E102: Hawaii | F102: 7 | G102: 6 | H102: 0.6 | I102: 17 | J102: 2.428571429 | K102: 578 | L102: 82.57142857 | M102: 327 | N102: 21 | O102: 38 | P102: 36 | Q102: 12 | R102: 434 | S102: 0.1359447005
A103: Team J | B103: Abel | C103: Product 2 | D103: 41791 | E103: Hawaii | F103: 7 | G103: 6 | H103: 0.6 | I103: 17 | J103: 2.428571429 | K103: 578 | L103: 82.57142857 | M103: 327 | N103: 21 | O103: 38 | P103: 36 | Q103: 12 | R103: 434 | S103: 0.1359447005

Sheet Calculation_Sheet
A1: Region | B1: Product
A2: Alabama | B2: Product 1
A3: California | B3: Product 2
A4: Colorado | B4: Product 1
A5: Connecticut | B5: Product 2
A6: Florida | B6: Product 1
A7: Hawaii | B7: Product 2
A16: Call Quality Summation
A17: Region | B17: Alabama | C17: California | D17: Colorado | E17: Connecticut | F17: Florida | G17: Hawaii
A18: Excellent | B18: 426 | C18: 426 | D18: 441 | E18: 445 | F18: 431 | G18: 404
A19: Good | B19: 590 | C19: 582 | D19: 607 | E19: 584 | F19: 604 | G19: 571
A20: Fair | B20: 589 | C20: 589 | D20: 579 | E20: 605 | F20: 607 | G20: 585
A21: Poor | B21: 210 | C21: 204 | D21: 211 | E21: 212 | F21: 202 | G21: 212
I23: For Agent Display in Grid
A24: Customer Satisfaction (Excellent/Good) Results | E24: CSAT Graph Data | K24: Starting Row | L24: Total Rows | N24: Top Agent By
A25: Region | B25: Team | C25: CSAT | E25: Region | F25: =Dashboard!C1 -> Alabama | G25: Sparkline | I25: Selected Country | J25: =Dashboard!$C$1 -> Alabama | K25: =MATCH(Calculation_Sheet!$J$25,Data[Region],0)+1 -> 2 | L25: =COUNTA(Data[Team]) + 1 -> 103 | N25: Login Hrs
A26: Alabama | B26: Team A | C26: 0.2859703583 | E26: Team A | F26: =INDEX(Calculation_Sheet!$A$26:$C$85,MATCH($F$25,Calculation_Sheet!$A$26:$A$85,0)+ ROW($E26)-ROW($E$26),3) -> 0.2859703583 | I26: Selected Team | J26: Team A | K26: =MATCH(Calculation_Sheet!$J$26,INDIRECT("'Team Performance'!A"& Calculation_Sheet!$K$25&":"&"A"&Calculation_Sheet!$L$25),0) -> 1 | L26: =COUNTA(Data[Team]) + 1 -> 103 | N26: Talk Time
A27: Alabama | B27: Team B | C27: 0.2780339259 | E27: Team B | F27: =INDEX(Calculation_Sheet!$A$26:$C$85,MATCH($F$25,Calculation_Sheet!$A$26:$A$85,0)+ ROW($E27)-ROW($E$26),3) -> 0.2780339259 | N27: Calls
A28: Alabama | B28: Team C | C28: 0.1386554622 | E28: Team C | F28: =INDEX(Calculation_Sheet!$A$26:$C$85,MATCH($F$25,Calculation_Sheet!$A$26:$A$85,0)+ ROW($E28)-ROW($E$26),3) -> 0.1386554622 | N28: Sales/Hr
A29: Alabama | B29: Team D | C29: 0.2530784647 | E29: Team D | F29: =INDEX(Calculation_Sheet!$A$26:$C$85,MATCH($F$25,Calculation_Sheet!$A$26:$A$85,0)+ ROW($E29)-ROW($E$26),3) -> 0.2530784647 | N29: Total Sales
A30: Alabama | B30: Team E | C30: 0.2805555556 | E30: Team E | F30: =INDEX(Calculation_Sheet!$A$26:$C$85,MATCH($F$25,Calculation_Sheet!$A$26:$A$85,0)+ ROW($E30)-ROW($E$26),3) -> 0.2805555556 | N30: Rev/Hr
A31: Alabama | B31: Team F | C31: 0.118 | E31: Team F | F31: =INDEX(Calculation_Sheet!$A$26:$C$85,MATCH($F$25,Calculation_Sheet!$A$26:$A$85,0)+ ROW($E31)-ROW($E$26),3) -> 0.118 | N31: Total Rev
A32: Alabama | B32: Team G | C32: 0.2406103067 | E32: Team G | F32: =INDEX(Calculation_Sheet!$A$26:$C$85,MATCH($F$25,Calculation_Sheet!$A$26:$A$85,0)+ ROW($E32)-ROW($E$26),3) -> 0.2406103067 | N32: Excellent
A33: Alabama | B33: Team H | C33: 0.2495159059 | E33: Team H | F33: =INDEX(Calculation_Sheet!$A$26:$C$85,MATCH($F$25,Calculation_Sheet!$A$26:$A$85,0)+ ROW($E33)-ROW($E$26),3) -> 0.2495159059 | N33: Good
A34: Alabama | B34: Team I | C34: 0.2698717641 | E34: Team I | F34: =INDEX(Calculation_Sheet!$A$26:$C$85,MATCH($F$25,Calculation_Sheet!$A$26:$A$85,0)+ ROW($E34)-ROW($E$26),3) -> 0.2698717641 | N34: Fair
A35: Alabama | B35: Team J | C35: 0.126 | E35: Team J | F35: =INDEX(Calculation_Sheet!$A$26:$C$85,MATCH($F$25,Calculation_Sheet!$A$26:$A$85,0)+ ROW($E35)-ROW($E$26),3) -> 0.126 | N35: Poor
A36: California | B36: Team A | C36: 0.2399167317 | N36: CSAT
A37: California | B37: Team B | C37: 0.2564553991
A38: California | B38: Team C | C38: 0.1413276231
A39: California | B39: Team D | C39: 0.2478297287
A40: California | B40: Team E | C40: 0.247057123
A41: California | B41: Team F | C41: 0.1534988713
A42: California | B42: Team G | C42: 0.2662300683
A43: California | B43: Team H | C43: 0.2962201432
A44: California | B44: Team I | C44: 0.1341176471
A45: California | B45: Team J | C45: 0.2494347448
A46: Colorado | B46: Team A | C46: 0.2813915858
A47: Colorado | B47: Team B | C47: 0.1286919831
A48: Colorado | B48: Team C | C48: 0.2412597544
A49: Colorado | B49: Team D | C49: 0.2856220243
A50: Colorado | B50: Team E | C50: 0.1229166667
A51: Colorado | B51: Team F | C51: 0.3082413188
A52: Colorado | B52: Team G | C52: 0.2640343094
A53: Colorado | B53: Team H | C53: 0.1379310345
A54: Colorado | B54: Team I | C54: 0.2856936312
A55: Colorado | B55: Team J | C55: 0.2921286031
A56: Connecticut | B56: Team A | C56: 0.2768222986
A57: Connecticut | B57: Team B | C57: 0.1317991632
A58: Connecticut | B58: Team C | C58: 0.247736849
A59: Connecticut | B59: Team D | C59: 0.2579834508
A60: Connecticut | B60: Team E | C60: 0.1312910284
A61: Connecticut | B61: Team F | C61: 0.2438492838
A62: Connecticut | B62: Team G | C62: 0.2321627366
A63: Connecticut | B63: Team H | C63: 0.1167002012
A64: Connecticut | B64: Team I | C64: 0.2463726015
A65: Connecticut | B65: Team J | C65: 0.2912084933
A66: Florida | B66: Team A | C66: 0.133611691
A67: Florida | B67: Team B | C67: 0.2648996148
A68: Florida | B68: Team C | C68: 0.2545977011
A69: Florida | B69: Team D | C69: 0.1333333333
A70: Florida | B70: Team E | C70: 0.2618130534
A71: Florida | B71: Team F | C71: 0.2627355268
A72: Florida | B72: Team G | C72: 0.1412556054
A73: Florida | B73: Team H | C73: 0.2469858378
A74: Florida | B74: Team I | C74: 0.2689818997
A75: Florida | B75: Team J | C75: 0.2357723577
A76: Hawaii | B76: Team A | C76: 0.1242236025
A77: Hawaii | B77: Team B | C77: 0.2529937535
A78: Hawaii | B78: Team C | C78: 0.2491021517
A79: Hawaii | B79: Team D | C79: 0.1373493976
A80: Hawaii | B80: Team E | C80: 0.2344645431
A81: Hawaii | B81: Team F | C81: 0.2348548901
A82: Hawaii | B82: Team G | C82: 0.116089613
A83: Hawaii | B83: Team H | C83: 0.28826491
A84: Hawaii | B84: Team I | C84: 0.2669294008
A85: Hawaii | B85: Team J | C85: 0.2718894009
